fUSD/lending_fUSD_20240620
["ID","MTS","AMOUNT","RATE_DAILY","PERIOD"]
[329929368,1718842231589,-626.70356915,0.00010344,2]
[329929369,1718842231600,-5.76484034,0.00010344,2]
[329929370,1718842231612,-267.67935648,0.00010344,2]
[329929371,1718842231621,-300.0,0.00010344,2]
[329929372,1718842231631,-32.32064352,0.00010345,2]
[329929373,1718842231672,-281.19172138,0.00010345,2]
[329929374,1718842231715,-713.45,0.00010345,2]
[329929375,1718842231727,-2643.95885393,0.00010345,2]
[329929376,1718842231738,-2072.29342945,0.00010345,2]
[329929377,1718842231749,-1341.7611196,0.00010345,2]
[329929378,1718842231797,-12507.63114021,0.00010345,2]
[329929379,1718842231807,-383.85,0.0001035,2]
[329929380,1718842231816,-30000.0,0.00011,2]
[329929381,1718842231825,-420.0,0.00011374,2]
[329929382,1718842231834,-159.62,0.00012099,2]
[329929383,1718842231843,-21931.52,0.0001213,2]
[329929384,1718842231852,-169.31,0.00012143,2]
[329929385,1718842231861,-4768.89,0.00012152,2]
[329929386,1718842231870,-285.3,0.00012159,2]
[329929387,1718842231879,-250.0,0.00012173,2]
[329929388,1718842231888,-204.37562916,0.00012236,2]
[329929389,1718842231897,-167.32,0.00012254,2]
[329929390,1718842231907,-499.99,0.00012254,2]
[329929391,1718842231916,-250.0,0.00012277,2]
[329929392,1718842231926,-1000.0,0.00012277,2]
[329929393,1718842231935,-587.0,0.00012507,2]
[329929394,1718842231944,-334.44,0.00012538,2]
[329929395,1718842231954,-383.85,0.00012614,2]
[329929396,1718842231963,-7464.66958561,0.00012979,2]
[329929397,1718842231973,-5000.0,0.00012979,2]
[329929398,1718842231982,-5000.0,0.00012979,2]
[329929400,1718842231991,-150.0,0.00013305,2]
[329929401,1718842232000,-172.46,0.00013385,2]
[329929403,1718842232010,-258.2968,0.00013397,2]
[329929405,1718842232019,-1000.0,0.0001342,2]
[329929406,1718842232028,-1159.99334194,0.00013424,2]
[329929407,1718842232038,-1139.8698971,0.00013424,2]
[329929408,1718842232048,-79410.0934,0.00013497,2]
[329929409,1718842232057,-2115.87179347,0.00013498,2]
[329929410,1718842232066,-570.72379168,0.00013498,2]
[329929411,1718842232075,-418.17,0.000135,2]
[329929412,1718842232084,-219.94,0.00013507,3]
[329929413,1718842232093,-1820.0,0.0001352,2]
[329929414,1718842232103,-455.967,0.0001352,2]
[329929415,1718842232112,-1271.0,0.0001352,2]
[329929416,1718842232121,-194.978,0.0001352,2]
[329929417,1718842232130,-373.769,0.0001352,2]
[329929418,1718842232140,-442.0,0.0001352,2]
[329929419,1718842232165,-1651.0,0.0001352,2]
[329929420,1718842232174,-1304.0,0.0001352,2]
[329929421,1718842232184,-454.855,0.0001352,2]
[329929422,1718842232194,-2409.0,0.0001352,2]
[329929423,1718842232203,-159.388,0.0001352,2]
[329929424,1718842232212,-639.406,0.0001352,2]
[329929425,1718842232221,-1981.0,0.0001352,2]
[329929426,1718842232230,-3197.0,0.0001352,2]
[329929427,1718842232239,-1196.0,0.0001352,2]
[329929428,1718842232250,-383.546,0.0001352,2]
[329929429,1718842232259,-1659.0,0.0001352,2]
[329929430,1718842232269,-5162.0,0.0001352,2]
[329929431,1718842232278,-5792.0,0.0001352,2]
[329929432,1718842232287,-37534.16563241,0.0001352,2]
[329929433,1718842232299,-583.83436759,0.0001352,2]
[329929434,1718842232308,-570.72379164,0.00013523,2]
[329929435,1718842232317,-570.72379164,0.00013548,2]
[329929436,1718842232328,-2115.87179344,0.00013555,2]
[329929437,1718842232337,-570.72379164,0.00013573,2]
[329929438,1718842232348,-203.72089019,0.00013587,2]
[329929439,1718842232357,-200.0,0.00013588,2]
[329929440,1718842232366,-200.0,0.00013588,2]
[329929441,1718842232376,-400.0,0.00013595,2]
[329929442,1718842232385,-461.46918323,0.00013595,2]
[329929443,1718842232394,-267.18972619,0.00013595,2]
[329929444,1718842232404,-158.23995972,0.00013595,2]
[329929445,1718842232413,-500.0,0.00013595,2]
[329929446,1718842232424,-170.9600273,0.00013596,2]
[329929447,1718842232433,-234.08195287,0.00013596,2]
[329929448,1718842232443,-791.5831627,0.00013596,2]
[329929449,1718842232452,-73170.76479205,0.00013597,2]
[329929450,1718842232463,-9310.89898269,0.00013597,2]
[329929451,1718842232475,-3395.3935,0.00013597,2]
[329929452,1718842232493,-3790.41395587,0.00013597,2]
[329929453,1718842232516,-317.16084097,0.00013498,2]
[329929454,1718842232525,-3145.34820903,0.00013597,2]
[329929486,1718842237644,-567.222,0.0001352,2]
[329929488,1718842237657,-449.78515722,0.00013597,2]
[329929490,1718842237670,-444.11719502,0.00013597,2]
[329929492,1718842237682,-729.17517403,0.00013597,2]
[329929494,1718842237694,-529.82133345,0.00013597,2]
[329929495,1718842237706,-1151.7587563,0.00013597,2]
[329929496,1718842237719,-479.23585153,0.00013597,2]
[329929497,1718842237733,-500.0,0.00013597,2]
[329929500,1718842237755,-671.65301558,0.00013597,2]
[329929502,1718842237768,-1391.18950319,0.00013597,2]
[329929505,1718842237780,-807.04598073,0.00013597,2]
[329929507,1718842237792,-8119.95917606,0.00013597,2]
[329929509,1718842237803,-6382.43789816,0.00013597,2]
[329929512,1718842237828,-775.44461026,0.00013597,2]
[329929515,1718842237840,-16169.82675154,0.00013597,2]
[329929517,1718842237851,-300.32,0.00013597,2]
[329929519,1718842237863,-586.27968751,0.00013597,2]
[329929521,1718842237875,-6569.5805026,0.00013597,2]
[329929524,1718842237886,-7087.31371134,0.00013597,2]
[329929526,1718842237900,-7173.35954135,0.00013597,2]
[329929528,1718842237912,-9901.01985224,0.00013597,2]
[329929530,1718842237924,-5085.22599903,0.00013597,2]
[329929531,1718842237936,-5316.55835596,0.00013597,2]
[329929532,1718842237948,-810.16228092,0.00013597,2]
[329929533,1718842237960,-3163.29177813,0.00013597,2]
[329929534,1718842237971,-774.91831638,0.00013597,2]
[329929535,1718842237983,-1134.11629246,0.00013597,2]
[329929536,1718842237995,-4563.16507407,0.00013597,2]
[329929537,1718842238021,-6927.86209174,0.00013597,2]
[329929538,1718842238033,-1999.05404821,0.00013597,2]
[329929539,1718842238045,-1517.50982453,0.00013597,2]
[329929540,1718842238058,-697.76274,0.00013597,2]
[329929541,1718842238095,-1978.40158812,0.00013597,2]
[329929542,1718842238108,-10574.23493044,0.00013597,2]
[329929543,1718842238120,-33881.78124711,0.00013597,2]
[329929544,1718842238132,-401.75055454,0.00013597,2]
[329929547,1718842238145,-790.78038868,0.00013597,2]
[329929549,1718842238160,-1729.55783652,0.00013597,2]
[329929551,1718842238172,-21774.56130596,0.00013597,2]
[329929554,1718842238186,-350.1,0.00013597,2]
[329929555,1718842238199,-38972.16313651,0.00013597,2]
[329929557,1718842238254,-508.11494644,0.00013597,2]
[329929559,1718842238266,-1153.0,0.00013597,2]
[329929560,1718842238279,-3726.19972867,0.00013597,2]
[329929561,1718842239920,-2280.15459885,0.00013597,2]
[329929562,1718842239932,-639.50505776,0.00013597,2]
[329929563,1718842239944,-863.2531778,0.00013597,2]
[329929564,1718842239956,-547.05596335,0.00013597,2]
[329929565,1718842239976,-2388.00290633,0.00013597,2]
[329929570,1718842240176,-137631.25437871,0.00013597,2]
[329929572,1718842240187,-214.95407952,0.00013598,2]
[329929574,1718842240198,-238.58403677,0.00013598,2]
[329929576,1718842240208,-151.0,0.00013598,2]
[329929578,1718842240218,-154.98636,0.00013598,2]
[329929580,1718842240228,-151.0,0.00013598,2]
[329929582,1718842240239,-154.98636,0.00013598,2]
[329929585,1718842240250,-151.0,0.00013598,2]
[329929586,1718842240261,-157.092357,0.00013598,2]
[329929588,1718842240271,-152.448144,0.00013598,2]
[329929591,1718842240283,-229.652272,0.00013598,2]
[329929593,1718842240293,-229.652272,0.00013598,2]
[329929594,1718842240303,-151.0,0.00013598,2]
[329929596,1718842240313,-151.0,0.00013598,2]
[329929597,1718842240323,-816.044358,0.00013598,2]
[329929598,1718842240336,-816.044358,0.00013598,2]
[329929599,1718842240348,-151.0,0.00013598,2]
[329929600,1718842240358,-151.0,0.00013598,2]
[329929601,1718842240368,-153.374524,0.00013598,2]
[329929602,1718842240379,-151.0,0.00013598,2]
[329929603,1718842240389,-570.72379164,0.00013598,2]
[329929604,1718842240399,-151.0,0.00013598,2]
[329929605,1718842240410,-151.0,0.00013598,2]
[329929606,1718842240420,-151.0,0.00013598,2]
[329929607,1718842240431,-80176.1864,0.00013598,2]
[329929608,1718842240441,-155.5699,0.00013598,2]
[329929609,1718842240451,-2444.2404,0.00013598,2]
[329929610,1718842240461,-1000.0,0.00013598,2]
[329929611,1718842240470,-10000.0,0.00013598,2]
[329929612,1718842240480,-1000.0,0.00013598,2]
[329929613,1718842240490,-1704.72,0.000136,2]
[329929614,1718842240500,-418.17,0.000136,2]
[329929615,1718842240510,-418.17,0.000136,2]
[329929616,1718842240520,-2115.87179344,0.00013613,2]
[329929617,1718842240530,-116764.45812736,0.00013626,2]
[329929618,1718842240540,-151.0,0.00013626,2]
[329929619,1718842240550,-151.0,0.00013626,2]
[329929620,1718842240560,-151.0,0.00013626,2]
[329929621,1718842240570,-151.0,0.00013626,2]
[329929622,1718842240580,-151.915711,0.00013626,2]
[329929623,1718842240590,-151.0,0.00013626,2]
[329929624,1718842240600,-151.0,0.00013626,2]
[329929625,1718842240611,-151.915711,0.00013626,2]
[329929626,1718842240620,-194.742665,0.00013626,2]
[329929627,1718842240630,-194.742665,0.00013626,2]
[329929628,1718842240640,-151.0,0.00013626,2]
[329929629,1718842240651,-188.980349,0.00013626,2]
[329929630,1718842240661,-151.0,0.00013626,2]
[329929631,1718842240671,-151.0,0.00013626,2]
[329929632,1718842240682,-151.0,0.00013626,2]
[329929633,1718842240691,-151.0,0.00013626,2]
[329929634,1718842240701,-208.495012,0.00013626,2]
[329929635,1718842240711,-151.0,0.00013626,2]
[329929636,1718842240721,-151.0,0.00013626,2]
[329929637,1718842240730,-273.856041,0.00013626,2]
[329929638,1718842240740,-151.0,0.00013626,2]
[329929639,1718842240750,-201.023544,0.00013626,2]
[329929640,1718842240760,-201.023544,0.00013626,2]
[329929641,1718842240769,-311.481253,0.00013626,2]
[329929642,1718842240779,-230.317404,0.00013626,2]
[329929643,1718842240788,-311.481253,0.00013626,2]
[329929644,1718842240799,-151.0,0.00013626,2]
[329929645,1718842240809,-151.0,0.00013626,2]
[329929646,1718842240819,-151.0,0.00013626,2]
[329929647,1718842240829,-154.98636,0.00013626,2]
[329929648,1718842240838,-154.98636,0.00013626,2]
[329929649,1718842240847,-151.0,0.00013626,2]
[329929650,1718842240857,-151.0,0.00013626,2]
[329929651,1718842240867,-229.652272,0.00013626,2]
[329929652,1718842240877,-165.354322,0.00013626,2]
[329929653,1718842240887,-229.652272,0.00013626,2]
[329929654,1718842240896,-151.0,0.00013626,2]
[329929655,1718842240907,-242.170085,0.00013626,2]
[329929656,1718842240917,-242.170085,0.00013626,2]
[329929657,1718842240926,-151.0,0.00013626,2]
[329929658,1718842240935,-216.610676,0.00013626,2]
[329929659,1718842240945,-204.240453,0.00013626,2]
[329929660,1718842240955,-216.610676,0.00013626,2]
[329929661,1718842240965,-151.0,0.00013626,2]
[329929662,1718842240974,-151.0,0.00013626,2]
[329929663,1718842240990,-151.0,0.00013626,2]
[329929664,1718842240999,-151.0,0.00013626,2]
[329929665,1718842241010,-151.0,0.00013626,2]
[329929666,1718842241019,-151.0,0.00013626,2]
[329929667,1718842241029,-151.0,0.00013626,2]
[329929668,1718842241039,-151.0,0.00013626,2]
[329929669,1718842241049,-151.0,0.00013626,2]
[329929670,1718842241058,-151.0,0.00013626,2]
[329929671,1718842241068,-151.0,0.00013626,2]
[329929672,1718842241077,-151.0,0.00013626,2]
[329929673,1718842241086,-151.0,0.00013626,2]
[329929674,1718842241097,-151.0,0.00013626,2]
[329929675,1718842241107,-338.53605,0.00013626,2]
[329929676,1718842241121,-151.0,0.00013626,2]
[329929677,1718842241131,-151.0,0.00013626,2]
[329929678,1718842241140,-338.53605,0.00013626,2]
[329929679,1718842241151,-151.0,0.00013626,2]
[329929680,1718842241161,-156.400157,0.00013626,2]
[329929681,1718842241170,-151.0,0.00013626,2]
[329929682,1718842241179,-816.044358,0.00013626,2]
[329929683,1718842241189,-156.400157,0.00013626,2]
[329929684,1718842241199,-816.044358,0.00013626,2]
[329929685,1718842241209,-151.0,0.00013626,2]
[329929686,1718842241219,-151.0,0.00013626,2]
[329929687,1718842241229,-151.0,0.00013626,2]
[329929688,1718842241240,-151.0,0.00013626,2]
[329929689,1718842241253,-151.0,0.00013626,2]
[329929690,1718842241263,-151.0,0.00013626,2]
[329929691,1718842241273,-151.0,0.00013626,2]
[329929692,1718842241283,-151.0,0.00013626,2]
[329929693,1718842241294,-151.0,0.00013626,2]
[329929694,1718842241303,-253.424465,0.00013626,2]
[329929695,1718842241313,-151.0,0.00013626,2]
[329929696,1718842241323,-151.0,0.00013626,2]
[329929697,1718842241335,-712.033248,0.00013626,2]
[329929698,1718842241346,-151.0,0.00013626,2]
[329929699,1718842241356,-151.0,0.00013626,2]
[329929700,1718842241366,-712.033248,0.00013626,2]
[329929701,1718842241376,-151.0,0.00013626,2]
[329929702,1718842241386,-151.0,0.00013626,2]
[329929703,1718842241396,-1565.74596654,0.00013644,2]
[329929704,1718842241407,-169.31,0.00013661,2]
[329929705,1718842241417,-2115.87179344,0.0001367,2]
[329929706,1718842241427,-2191.8680453,0.00013686,2]
[329929707,1718842241437,-18104.6964047,0.00013686,2]
[329929708,1718842241446,-1071.1846162,0.00013687,2]
[329929709,1718842241456,-191.0,0.0001369,2]
[329929710,1718842241466,-5628.31785366,0.0001369,2]
[329929711,1718842241475,-201.65732966,0.0001369,2]
[329929712,1718842241485,-521.0,0.00013696,2]
[329929713,1718842241495,-7551.86620162,0.00013696,2]
[329929714,1718842241504,-155.05456521,0.00013696,2]
[329929715,1718842241514,-201.89348429,0.00013696,2]
[329929716,1718842241524,-155.0,0.00013696,2]
[329929717,1718842241534,-191.82046631,0.00013696,2]
[329929718,1718842241544,-158.41310803,0.00013696,2]
[329929719,1718842241554,-176.74369441,0.00013696,2]
[329929720,1718842241564,-205.63487324,0.00013696,2]
[329929721,1718842241574,-160.34044607,0.00013696,2]
[329929722,1718842241583,-727.60709199,0.00013696,2]
[329929723,1718842241593,-156.39415285,0.00013696,2]
[329929724,1718842241603,-155.90896839,0.00013696,2]
[329929725,1718842241613,-571.32722916,0.00013696,2]
[329929726,1718842241624,-162.88953643,0.00013696,2]
[329929727,1718842241634,-1396.85466757,0.00013696,2]
[329929728,1718842241644,-155.43348273,0.00013696,2]
[329929729,1718842241656,-196.84671782,0.00013696,2]
[329929730,1718842241669,-211.53018415,0.00013696,2]
[329929731,1718842241679,-155.93081715,0.00013696,2]
[329929732,1718842241691,-427.49328178,0.00013696,2]
[329929733,1718842241701,-1136.96778088,0.00013696,2]
[329929734,1718842241711,-3000.0,0.00013696,2]
[329929735,1718842241721,-155.63701024,0.00013696,2]
[329929736,1718842241730,-561.65321592,0.00013696,2]
[329929737,1718842241740,-371.17431484,0.00013696,2]
[329929738,1718842241749,-281.61774208,0.00013696,2]
[329929739,1718842241759,-155.00075332,0.00013696,2]
[329929740,1718842241769,-523.6044202,0.00013696,2]
[329929741,1718842241778,-290.55514573,0.00013696,2]
[329929742,1718842241788,-168.27930932,0.00013696,2]
[329929743,1718842241799,-198.67910178,0.00013696,2]
[329929744,1718842241808,-334.87834601,0.00013696,2]
[329929745,1718842241819,-172.98685955,0.00013696,2]
[329929746,1718842241829,-436.37921393,0.00013696,2]
[329929747,1718842241838,-155.0,0.00013696,2]
[329929748,1718842241847,-2354.57760302,0.00013696,2]
[329929749,1718842241858,-545.13448433,0.00013696,2]
[329929750,1718842241867,-165.22690189,0.00013696,2]
[329929751,1718842241877,-156.65432826,0.00013696,2]
[329929752,1718842241888,-35482.43622612,0.00013696,2]
[329929753,1718842241899,-156.45031084,0.00013696,2]
[329929754,1718842241915,-369.84609544,0.00013696,2]
[329929755,1718842241924,-155.28453924,0.00013696,2]
[329929756,1718842241934,-1879.76939918,0.00013696,2]
[329929757,1718842241943,-200.72625392,0.00013696,2]
[329929758,1718842241952,-155.53038523,0.00013696,2]
[329929759,1718842241962,-187.92616738,0.00013696,2]
[329929760,1718842241973,-155.67728333,0.00013696,2]
[329929761,1718842241983,-201.03979443,0.00013696,2]
[329929762,1718842241992,-2364.6013933,0.00013696,2]
[329929763,1718842242001,-156.84962146,0.00013696,2]
[329929764,1718842242011,-156.77692132,0.00013696,2]
[329929765,1718842242021,-296.512316,0.00013696,2]
[329929766,1718842242030,-302.51960468,0.00013696,2]
[329929767,1718842242041,-202.47192436,0.00013696,2]
[329929768,1718842242051,-525.24750184,0.00013696,2]
[329929769,1718842242061,-155.95842963,0.00013696,2]
[329929770,1718842242071,-207.51776258,0.00013696,2]
[329929771,1718842242081,-6293.76232145,0.00013696,2]
[329929772,1718842242090,-1000.0,0.00013696,2]
[329929773,1718842242100,-166.15844385,0.00013696,2]
[329929774,1718842242110,-327.09381956,0.00013696,2]
[329929775,1718842242119,-151.0,0.00013696,2]
[329929776,1718842242129,-151.0,0.00013696,2]
[329929777,1718842242138,-151.0,0.00013696,2]
[329929778,1718842242148,-151.0,0.00013696,2]
[329929779,1718842242163,-151.0,0.00013696,2]
[329929780,1718842242172,-151.0,0.00013696,2]
[329929781,1718842242181,-151.0,0.00013696,2]
[329929782,1718842242190,-151.0,0.00013696,2]
[329929783,1718842242200,-247.925035,0.00013696,2]
[329929784,1718842242210,-247.925035,0.00013696,2]
[329929785,1718842242219,-151.0,0.00013696,2]
[329929786,1718842242228,-151.0,0.00013696,2]
[329929787,1718842242239,-151.0,0.00013696,2]
[329929788,1718842242252,-151.0,0.00013696,2]
[329929789,1718842242262,-151.0,0.00013696,2]
[329929790,1718842242271,-151.915711,0.00013696,2]
[329929791,1718842242282,-151.0,0.00013696,2]
[329929792,1718842242292,-151.0,0.00013696,2]
[329929793,1718842242301,-151.915711,0.00013696,2]
[329929794,1718842242311,-194.742665,0.00013696,2]
[329929795,1718842242322,-194.742665,0.00013696,2]
[329929796,1718842242336,-151.0,0.00013696,2]
[329929797,1718842242348,-151.0,0.00013696,2]
[329929798,1718842242359,-151.0,0.00013696,2]
[329929800,1718842242369,-156.660329,0.00013696,2]
[329929802,1718842242382,-151.0,0.00013696,2]
[329929804,1718842242391,-151.0,0.00013696,2]
[329929806,1718842242400,-151.0,0.00013696,2]
[329929808,1718842242412,-151.0,0.00013696,2]
[329929811,1718842242421,-201.023544,0.00013696,2]
[329929814,1718842242430,-201.023544,0.00013696,2]
[329929816,1718842242440,-311.481253,0.00013696,2]
[329929818,1718842242449,-311.481253,0.00013696,2]
[329929820,1718842242459,-151.0,0.00013696,2]
[329929821,1718842242470,-151.0,0.00013696,2]
[329929822,1718842242479,-151.0,0.00013696,2]
[329929823,1718842242489,-154.98636,0.00013696,2]
[329929825,1718842242498,-154.98636,0.00013696,2]
[329929827,1718842242508,-151.0,0.00013696,2]
[329929829,1718842242518,-151.0,0.00013696,2]
[329929832,1718842242528,-229.652272,0.00013696,2]
[329929833,1718842242537,-160.077414,0.00013696,2]
[329929834,1718842242547,-229.652272,0.00013696,2]
[329929835,1718842242556,-242.170085,0.00013696,2]
[329929837,1718842242566,-242.170085,0.00013696,2]
[329929839,1718842242575,-151.0,0.00013696,2]
[329929841,1718842242584,-216.610676,0.00013696,2]
[329929843,1718842242594,-216.610676,0.00013696,2]
[329929845,1718842242603,-151.0,0.00013696,2]
[329929847,1718842242612,-151.0,0.00013696,2]
[329929849,1718842242622,-151.0,0.00013696,2]
[329929851,1718842242632,-151.0,0.00013696,2]
[329929853,1718842242644,-151.0,0.00013696,2]
[329929854,1718842242654,-151.0,0.00013696,2]
[329929855,1718842242663,-151.0,0.00013696,2]
[329929856,1718842242672,-151.0,0.00013696,2]
[329929857,1718842242681,-151.0,0.00013696,2]
[329929858,1718842242690,-151.0,0.00013696,2]
[329929859,1718842242699,-151.0,0.00013696,2]
[329929860,1718842242708,-151.0,0.00013696,2]
[329929861,1718842242717,-171.65438,0.00013696,2]
[329929862,1718842242727,-338.53605,0.00013696,2]
[329929863,1718842242736,-151.0,0.00013696,2]
[329929864,1718842242746,-151.0,0.00013696,2]
[329929865,1718842242756,-338.53605,0.00013696,2]
[329929866,1718842242765,-296.051744,0.00013696,2]
[329929867,1718842242777,-156.400157,0.00013696,2]
[329929868,1718842242786,-151.0,0.00013696,2]
[329929869,1718842242796,-816.044358,0.00013696,2]
[329929870,1718842242805,-156.400157,0.00013696,2]
[329929871,1718842242815,-816.044358,0.00013696,2]
[329929872,1718842242824,-151.0,0.00013696,2]
[329929873,1718842242834,-151.0,0.00013696,2]
[329929874,1718842242843,-154.025365,0.00013696,2]
[329929875,1718842242852,-151.0,0.00013696,2]
[329929876,1718842242862,-151.0,0.00013696,2]
[329929877,1718842242871,-151.0,0.00013696,2]
[329929878,1718842242881,-151.0,0.00013696,2]
[329929879,1718842242890,-151.0,0.00013696,2]
[329929880,1718842242900,-151.0,0.00013696,2]
[329929881,1718842242911,-151.0,0.00013696,2]
[329929882,1718842242920,-712.033248,0.00013696,2]
[329929883,1718842242930,-151.0,0.00013696,2]
[329929884,1718842242940,-151.0,0.00013696,2]
[329929885,1718842242949,-712.033248,0.00013696,2]
[329929886,1718842242959,-151.0,0.00013696,2]
[329929887,1718842242968,-151.0,0.00013696,2]
[329929888,1718842242978,-4620.61640161,0.00013697,2]
[329929889,1718842242989,-155.09060028,0.00013697,2]
[329929890,1718842242999,-482.51782929,0.00013697,2]
[329929891,1718842243008,-647.07118019,0.00013697,2]
[329929892,1718842243018,-150.0,0.00013697,2]
[329929894,1718842243027,-500.0,0.00013698,2]
[329929896,1718842243036,-307.90534846,0.00013698,2]
[329929898,1718842243046,-500.0,0.00013698,2]
[329929900,1718842243055,-500.0,0.00013698,2]
[329929903,1718842243065,-717.15,0.00013698,2]
[329929905,1718842243075,-155.0,0.00013698,2]
[329929906,1718842243084,-500.0,0.00013698,2]
[329929910,1718842243093,-500.0,0.00013698,2]
[329929911,1718842243102,-500.0,0.00013698,2]
[329929914,1718842243111,-500.0,0.00013698,2]
[329929917,1718842243121,-810.74,0.00013698,2]
[329929920,1718842243130,-500.0,0.00013698,2]
[329929922,1718842243139,-500.0,0.00013698,2]
[329929925,1718842243148,-500.0,0.00013698,2]
[329929927,1718842243159,-602.65,0.00013698,2]
[329929930,1718842243168,-500.0,0.00013698,2]
[329929933,1718842243177,-500.0,0.00013698,2]
[329929936,1718842243186,-592.96,0.00013698,2]
[329929939,1718842243195,-706.88,0.00013698,2]
[329929941,1718842243205,-500.0,0.00013698,2]
[329929944,1718842243214,-772.46,0.00013698,2]
[329929945,1718842243223,-500.0,0.00013698,2]
[329929947,1718842243233,-500.0,0.00013698,2]
[329929950,1718842243246,-525.2,0.00013698,2]
[329929952,1718842243255,-660.82,0.00013698,2]
[329929954,1718842243264,-193.732287,0.00013698,2]
[329929955,1718842243274,-700.78,0.00013698,2]
[329929957,1718842243283,-151.0,0.00013698,2]
[329929960,1718842243293,-151.0,0.00013698,2]
[329929961,1718842243302,-151.0,0.00013698,2]
[329929963,1718842243312,-509.31,0.00013698,2]
[329929965,1718842243321,-500.0,0.00013698,2]
[329929967,1718842243333,-500.0,0.00013698,2]
[329929969,1718842243343,-640.38,0.00013698,2]
[329929971,1718842243352,-500.0,0.00013698,2]
[329929973,1718842243362,-500.0,0.00013698,2]
[329929975,1718842243371,-282.09869892,0.00013698,2]
[329929977,1718842243381,-500.0,0.00013698,2]
[329929979,1718842243390,-500.0,0.00013698,2]
[329929981,1718842243400,-151.0,0.00013698,2]
[329929984,1718842243410,-500.0,0.00013698,2]
[329929985,1718842243419,-500.0,0.00013698,2]
[329929988,1718842243429,-500.0,0.00013698,2]
[329929990,1718842243439,-500.0,0.00013698,2]
[329929992,1718842243449,-629.64,0.00013698,2]
[329929994,1718842243459,-824.25,0.00013698,2]
[329929996,1718842243468,-500.0,0.00013698,2]
[329929998,1718842243477,-500.0,0.00013698,2]
[329930000,1718842243487,-500.0,0.00013698,2]
[329930002,1718842243497,-500.0,0.00013698,2]
[329930003,1718842243506,-560.26,0.00013698,2]
[329930006,1718842243517,-500.0,0.00013698,2]
[329930008,1718842243527,-500.0,0.00013698,2]
[329930010,1718842243538,-299.509621,0.00013698,2]
[329930012,1718842243548,-500.0,0.00013698,2]
[329930014,1718842243557,-500.0,0.00013698,2]
[329930016,1718842243567,-500.0,0.00013698,2]
[329930018,1718842243577,-500.0,0.00013698,2]
[329930019,1718842243587,-500.0,0.00013698,2]
[329930020,1718842243596,-500.0,0.00013698,2]
[329930021,1718842243606,-154.224481,0.00013698,2]
[329930022,1718842243615,-500.0,0.00013698,2]
[329930023,1718842243624,-562.98,0.00013698,2]
[329930024,1718842243634,-500.0,0.00013698,2]
[329930025,1718842243643,-587.11,0.00013698,2]
[329930026,1718842243654,-500.0,0.00013698,2]
[329930027,1718842243663,-285.037062,0.00013698,2]
[329930028,1718842243672,-500.0,0.00013698,2]
[329930030,1718842243681,-500.0,0.00013698,2]
[329930032,1718842243690,-500.0,0.00013698,2]
[329930034,1718842243699,-500.0,0.00013698,2]
[329930036,1718842243709,-500.0,0.00013698,2]
[329930037,1718842243718,-500.0,0.00013698,2]
[329930038,1718842243727,-500.0,0.00013698,2]
[329930039,1718842243736,-500.0,0.00013698,2]
[329930040,1718842243746,-500.0,0.00013698,2]
[329930041,1718842243755,-500.0,0.00013698,2]
[329930042,1718842243763,-500.0,0.00013698,2]
[329930043,1718842243773,-500.0,0.00013698,2]
[329930044,1718842243783,-643.29,0.00013698,2]
[329930045,1718842243792,-500.0,0.00013698,2]
[329930046,1718842243803,-513.94,0.00013698,2]
[329930047,1718842243812,-500.0,0.00013698,2]